[Event "Centenario Panaderia Pulido 2023"]
[Site "San Mateo Gran Canaria"]
[Date "2023.12.07"]
[Round "6.6"]
[White "Hernando Rodrigo, Jose Maria"]
[Black "Hernandez Leon, Sergio"]
[Result "1/2-1/2"]
[ECO "E13"]
[WhiteElo "2278"]
[BlackElo "2167"]
[Annotator "RC"]
[PlyCount "85"]
[EventDate "2023.12.04"]
[EventType "swiss"]
[EventCountry "ESP"]
[SourceTitle "playchess.com"]
[Source "ChessBase"]
[SourceQuality "1"]
[TimeControl "5400+30"]

1. d4 {[%emt 0:00:04]} Nf6 {[%emt 0:00:06]} 2. c4 {[%emt 0:00:20]} e6 {[%emt 0:00:05]} 3. Nc3 {[%emt 0:00:08]} Bb4 {[%emt 0:00:12]} 4. Bg5 {[%emt 0:01:09]} h6 {[%emt 0:01:46]} 5. Bh4 {[%emt 0:00:42]} b6 {[%emt 0:07:52]} 6. e3 {[%emt 0:04:10]} Bb7 {[%emt 0:01:01]} 7. Nf3 {[%emt 0:01:05]} O-O {[%emt 0:02:28]} 8. Rc1 {[%emt 0:02:40]} Be7 {[%emt 0:05:15]} 9. Bd3 {[%emt 0:01:09]} c5 {[%emt 0:02:07]} 10. O-O {[%emt 0:02:55]} cxd4 {[%emt 0:01:54]} 11. exd4 {[%emt 0:00:41]} d5 {[%emt 0:00:58]} 12. Qe2 {[%emt 0:01:58]} Nc6 {[%emt 0:17:27]} 13. cxd5 {[%emt 0:06:24]} exd5 {[%emt 0:03:07]} 14. Rfe1 {[%emt 0:05:10]} Re8 {[%emt 0:12:22]} 15. Bxf6 {[%emt 0:15:24]} Bxf6 {[%emt 0:00:09]} 16. Qxe8+ {[%emt 0:00:04]} Qxe8 {[%emt 0:00:05]} 17. Rxe8+ {[%emt 0:00:08]} Rxe8 {[%emt 0:00:03]} 18. Nxd5 {[%emt 0:00:05]} Bg5 {[%emt 0:11:05]} 19. Nxg5 {[%emt 0:02:01]} hxg5 {[%emt 0:00:03]} 20. Bb5 {[%emt 0:01:03]} Nxd4 {[%emt 0:00:20]} 21. Bxe8 {[%emt 0:05:13]} Ne2+ {[%emt 0:00:16]} 22. Kf1 {[%emt 0:00:39]} Nxc1 {[%emt 0:00:06]} 23. Nc3 {[%emt 0:00:06]} Ba6+ {[%emt 0:00:13]} 24. Bb5 {[%emt 0:00:12]} Bxb5+ {[%emt 0:01:35]} 25. Nxb5 {[%emt 0:00:07]} Nxa2 {[%emt 0:00:05]} 26. Nxa7 {[%emt 0:00:06]} Nc1 {[%emt 0:06:36]} 27. b4 {[%emt 0:00:42]} Kf8 {[%emt 0:12:07]} 28. b5 {[%emt 0:02:29]} Ke8 {[%emt 0:00:13]} 29. Ke1 {[%emt 0:09:45]} Kd7 {[%emt 0:07:48]} 30. Kd2 {[%emt 0:02:24]} Nb3+ {[%emt 0:00:03]} 31. Kc3 {[%emt 0:00:55]} Nc5 {[%emt 0:00:11]} 32. Kd4 {[%emt 0:01:24]} f6 {[%emt 0:01:32]} 33. f3 {[%emt 0:03:33]} g6 {[%emt 0:00:54]} 34. Kc4 {[%emt 0:03:33]} Ne6 {[%emt 0:00:57]} 35. Nc6 {[%emt 0:00:38]} Kd6 {[%emt 0:00:13]} 36. Nb4 {[%emt 0:03:47]} Nc7 {[%emt 0:00:04]} 37. Na6 {[%emt 0:00:29]} Nd5 {[%emt 0:00:32]} 38. Kd4 {[%emt 0:02:51]} Ne7 {[%emt 0:03:28]} 39. g3 {[%emt 0:03:14]} Kd7 {[%emt 0:00:27]} 40. g4 {[%emt 0:06:47]} Kd6 {[%emt 0:00:12]} 41. Nb4 {[%emt 0:01:45]} Ke6 {[%emt 0:00:06]} 42. Nd3 {[%emt 0:06:42]} Nc8 {[%emt 0:00:28]} 43. Nb2 {[%emt 0:07:19]} 1/2-1/2

[Event "Centenario Panaderia Pulido 2023"]
[Site "San Mateo Gran Canaria"]
[Date "2023.12.07"]
[Round "6.7"]
[White "Gonzalez Martinez, Miguel Angel"]
[Black "Calzetta Ruiz, Monica"]
[Result "0-1"]
[ECO "B21"]
[WhiteElo "2158"]
[BlackElo "2239"]
[Annotator "RC"]
[PlyCount "98"]
[EventDate "2023.12.04"]
[EventType "swiss"]
[EventCountry "ESP"]
[SourceTitle "playchess.com"]
[Source "ChessBase"]
[SourceQuality "1"]
[TimeControl "5400+30"]

1. e4 {[%emt 0:02:12]} c5 {[%emt 0:00:08]} 2. d4 {[%emt 0:00:24]} cxd4 {[%emt 0:00:07]} 3. c3 {[%emt 0:00:08]} d3 {[%emt 0:05:00]} 4. Bxd3 {[%emt 0:00:56]} Nc6 {[%emt 0:00:06]} 5. c4 {[%emt 0:00:23]} g6 {[%emt 0:00:19]} 6. Nc3 {[%emt 0:02:39]} Bg7 {[%emt 0:00:20]} 7. Nge2 {[%emt 0:00:08]} Nf6 {[%emt 0:01:45]} 8. O-O {[%emt 0:00:42]} d6 {[%emt 0:04:12]} 9. f3 {[%emt 0:00:29]} O-O {[%emt 0:01:39]} 10. Be3 {[%emt 0:01:38]} Nd7 {[%emt 0:07:44]} 11. Rc1 {[%emt 0:02:53]} Nde5 {[%emt 0:24:42]} 12. b3 {[%emt 0:00:51]} b6 {[%emt 0:10:23]} 13. Bb1 {[%emt 0:02:20]} Bb7 {[%emt 0:00:11]} 14. Qd2 {[%emt 0:00:49]} Qd7 {[%emt 0:06:15]} 15. Bh6 {[%emt 0:06:02]} Rfd8 {[%emt 0:03:52]} 16. Rcd1 {[%emt 0:15:38]} Qe8 {[%emt 0:03:30]} 17. Nd5 {[%emt 0:01:45]} Rac8 {[%emt 0:00:11]} 18. Bxg7 {[%emt 0:01:22]} Kxg7 {[%emt 0:00:02]} 19. f4 {[%emt 0:00:36]} Nd7 {[%emt 0:02:00]} 20. f5 {[%emt 0:01:12]} Nce5 {[%emt 0:00:37]} 21. Nd4 {[%emt 0:04:24]} Bxd5 {[%emt 0:04:33]} 22. exd5 {[%emt 0:01:09]} Nf6 {[%emt 0:01:56]} 23. fxg6 {[%emt 0:01:52]} hxg6 {[%emt 0:00:05]} 24. Rde1 {[%emt 0:17:03]} Qh8 {[%emt 0:01:27]} 25. Qg5 {[%emt 0:08:51]} Qh5 {[%emt 0:01:58]} 26. Nf5+ {[%emt 0:04:12]} Kf8 {[%emt 0:00:17]} 27. Qxh5 {[%emt 0:01:08]} Nxh5 {[%emt 0:00:03]} 28. Nd4 {[%emt 0:06:43]} Nf6 {[%emt 0:02:10]} 29. Rxe5 {[%emt 0:01:07]} dxe5 {[%emt 0:00:05]} 30. Nc6 {[%emt 0:00:08]} Rxc6 {[%emt 0:15:00]} 31. dxc6 {[%emt 0:00:03]} Rc8 {[%emt 0:00:04]} 32. Re1 {[%emt 0:16:43]} Rxc6 {[%emt 0:00:01]} 33. Rxe5 {[%emt 0:12:20]} Rd6 {[%emt 0:00:01]} 34. Re1 {[%emt 0:00:17]} Rd2 {[%emt 0:00:02]} 35. Kf1 {[%emt 0:01:09]} Rb2 {[%emt 0:00:10]} 36. Kg1 {[%emt 0:01:55]} a5 {[%emt 0:01:13]} 37. Rd1 {[%emt 0:02:04]} e6 {[%emt 0:01:17]} 38. h3 {[%emt 0:01:12]} Ke7 {[%emt 0:00:14]} 39. Kh2 {[%emt 0:00:30]} Nh5 {[%emt 0:00:34]} 40. Rf1 {[%emt 0:08:28]} f5 {[%emt 0:00:23]} 41. h4 {[%emt 0:00:22]} Kf6 {[%emt 0:01:10]} 42. Kh3 {[%emt 0:08:22]} e5 {[%emt 0:01:42]} 43. g3 {[%emt 0:00:49]} Ke6 {[%emt 0:00:05]} 44. Re1 {[%emt 0:02:40]} Nf6 {[%emt 0:00:07]} 45. g4 {[%emt 0:00:48]} Nxg4 {[%emt 0:00:10]} 46. Kg3 {[%emt 0:00:22]} Nf6 {[%emt 0:05:40]} 47. Rd1 {[%emt 0:01:08]} Nh5+ {[%emt 0:00:24]} 48. Kh3 {[%emt 0:01:34]} Nf4+ {[%emt 0:00:03]} 49. Kg3 {[%emt 0:00:02]} Ne2+ {[%emt 0:00:14]} 0-1

[Event "Centenario Panaderia Pulido 2023"]
[Site "San Mateo Gran Canaria"]
[Date "2023.12.07"]
[Round "6.8"]
[White "Medina Martin, Alberto"]
[Black "Oudeh Mishmesh, Omar"]
[Result "0-1"]
[ECO "E20"]
[WhiteElo "2105"]
[BlackElo "2247"]
[Annotator "RC"]
[PlyCount "122"]
[EventDate "2023.12.04"]
[EventType "swiss"]
[EventCountry "ESP"]
[SourceTitle "playchess.com"]
[Source "ChessBase"]
[SourceQuality "1"]
[TimeControl "5400+30"]

1. d4 {[%emt 0:00:04]} Nf6 {[%emt 0:00:09]} 2. c4 {[%emt 0:00:10]} e6 {[%emt 0:00:10]} 3. Nc3 {[%emt 0:00:15]} Bb4 {[%emt 0:00:08]} 4. f3 {[%emt 0:00:06]} Ba5 {[%emt 0:00:20]} 5. e4 {[%emt 0:01:24]} d5 {[%emt 0:00:05]} 6. e5 {[%emt 0:01:09]} Nfd7 {[%emt 0:00:18]} 7. cxd5 {[%emt 0:00:29]} exd5 {[%emt 0:00:10]} 8. f4 {[%emt 0:01:13]} c5 {[%emt 0:01:27]} 9. Nf3 {[%emt 0:00:18]} Nc6 {[%emt 0:01:17]} 10. Be3 {[%emt 0:00:35]} cxd4 {[%emt 0:00:26]} 11. Nxd4 {[%emt 0:00:10]} O-O {[%emt 0:01:36]} 12. Bd3 {[%emt 0:06:36]} Bb6 {[%emt 0:01:54]} 13. Nce2 {[%emt 0:03:03]} Re8 {[%emt 0:08:00]} 14. O-O {[%emt 0:10:02]} f6 {[%emt 0:01:16]} 15. e6 {[%emt 0:00:01]} Nf8 {[%emt 0:00:04]} 16. f5 {[%emt 0:00:18]} Bxe6 {[%emt 0:04:20]} 17. fxe6 {[%emt 0:00:21]} Nxe6 {[%emt 0:00:04]} 18. Bb5 {[%emt 0:17:10]} Nexd4 {[%emt 0:25:54]} 19. Bxd4 {[%emt 0:00:42]} Nxd4 {[%emt 0:00:27]} 20. Bxe8 {[%emt 0:03:32]} Nc2+ {[%emt 0:01:48]} 21. Kh1 {[%emt 0:00:15]} Ne3 {[%emt 0:00:05]} 22. Qd3 {[%emt 0:03:10]} Nxf1 {[%emt 0:07:26]} 23. Rxf1 {[%emt 0:00:41]} Qxe8 {[%emt 0:00:09]} 24. Qxd5+ {[%emt 0:00:07]} Qf7 {[%emt 0:00:10]} 25. Rd1 {[%emt 0:03:10]} Qxd5 {[%emt 0:02:23]} 26. Rxd5 {[%emt 0:00:01]} Re8 {[%emt 0:01:04]} 27. Rd2 {[%emt 0:00:02]} Kf7 {[%emt 0:00:58]} 28. g3 {[%emt 0:00:11]} Rd8 {[%emt 0:00:37]} 29. Rc2 {[%emt 0:01:16]} Ke6 {[%emt 0:01:10]} 30. Nf4+ {[%emt 0:00:17]} Kf5 {[%emt 0:00:35]} 31. Kg2 {[%emt 0:00:58]} g5 {[%emt 0:02:35]} 32. Ne2 {[%emt 0:01:24]} h5 {[%emt 0:02:15]} 33. Nc3 {[%emt 0:01:35]} Rd3 {[%emt 0:01:10]} 34. Na4 {[%emt 0:01:03]} Bd4 {[%emt 0:06:38]} 35. Nc5 {[%emt 0:04:31]} Bxc5 {[%emt 0:00:24]} 36. Rxc5+ {[%emt 0:00:02]} Ke4 {[%emt 0:00:10]} 37. Rb5 {[%emt 0:00:12]} Rd2+ {[%emt 0:00:55]} 38. Kg1 {[%emt 0:01:13]} b6 {[%emt 0:01:41]} 39. Rb3 {[%emt 0:02:10]} Rd3 {[%emt 0:08:58]} 40. Rb5 {[%emt 0:02:27]} Rd5 {[%emt 0:01:21]} 41. Rb3 {[%emt 0:00:10]} Rd2 {[%emt 0:00:08]} 42. Rb5 {[%emt 0:01:41]} Kf3 {[%emt 0:00:44]} 43. Rb3+ {[%emt 0:04:05]} Kg4 {[%emt 0:00:11]} 44. h4 {[%emt 0:00:23]} gxh4 {[%emt 0:01:28]} 45. gxh4 {[%emt 0:00:01]} Kxh4 {[%emt 0:02:53]} 46. Ra3 {[%emt 0:00:07]} Rxb2 {[%emt 0:01:09]} 47. Rxa7 {[%emt 0:00:02]} f5 {[%emt 0:00:57]} 48. a4 {[%emt 0:01:04]} f4 {[%emt 0:01:06]} 49. a5 {[%emt 0:00:13]} bxa5 {[%emt 0:00:07]} 50. Rxa5 {[%emt 0:00:03]} Kg4 {[%emt 0:00:36]} 51. Ra8 {[%emt 0:00:21]} h4 {[%emt 0:02:13]} 52. Rg8+ {[%emt 0:01:20]} Kf3 {[%emt 0:00:12]} 53. Rh8 {[%emt 0:00:29]} Rg2+ {[%emt 0:02:40]} 54. Kf1 {[%emt 0:02:47]} Rg4 {[%emt 0:00:20]} 55. Ra8 {[%emt 0:01:11]} Kg3 {[%emt 0:00:15]} 56. Ra3+ {[%emt 0:04:05]} f3 {[%emt 0:00:09]} 57. Ra8 {[%emt 0:00:10]} h3 {[%emt 0:04:23]} 58. Kg1 {[%emt 0:00:02]} f2+ {[%emt 0:00:58]} 59. Kf1 {[%emt 0:00:49]} h2 {[%emt 0:00:12]} 60. Rh8 {[%emt 0:01:20]} h1=Q+ {[%emt 0:00:37]} 61. Rxh1 {[%emt 0:00:18]} Re4 {[%emt 0:00:09]} 0-1

[Event "Centenario Panaderia Pulido 2023"]
[Site "San Mateo Gran Canaria"]
[Date "2023.12.07"]
[Round "6.9"]
[White "Estremera Panos, Sergio"]
[Black "Ramirez Maillo, Juan Adonay"]
[Result "1-0"]
[ECO "A77"]
[WhiteElo "2232"]
[BlackElo "1857"]
[Annotator "RC"]
[PlyCount "51"]
[EventDate "2023.12.04"]
[EventType "swiss"]
[EventCountry "ESP"]
[SourceTitle "playchess.com"]
[Source "ChessBase"]
[SourceQuality "1"]
[TimeControl "5400+30"]

1. d4 {[%emt 0:00:55]} Nf6 {[%emt 0:00:07]} 2. c4 {[%emt 0:00:12]} g6 {[%emt 0:00:12]} 3. Nc3 {[%emt 0:00:19]} Bg7 {[%emt 0:00:06]} 4. e4 {[%emt 0:00:07]} d6 {[%emt 0:00:04]} 5. Nf3 {[%emt 0:00:11]} O-O {[%emt 0:00:09]} 6. Be2 {[%emt 0:00:05]} c5 {[%emt 0:00:25]} 7. d5 {[%emt 0:00:26]} e6 {[%emt 0:02:30]} 8. Nd2 {[%emt 0:03:35]} exd5 {[%emt 0:00:27]} 9. cxd5 {[%emt 0:00:07]} Re8 {[%emt 0:00:59]} 10. O-O {[%emt 0:00:18]} a6 {[%emt 0:05:27]} 11. a4 {[%emt 0:00:55]} Nbd7 {[%emt 0:00:17]} 12. Re1 {[%emt 0:00:45]} Rb8 {[%emt 0:01:00]} 13. h3 {[%emt 0:01:41]} Qc7 {[%emt 0:02:14]} 14. Qc2 {[%emt 0:05:48]} c4 {[%emt 0:06:56]} 15. a5 {[%emt 0:11:09]} Nc5 {[%emt 0:06:03]} 16. Bxc4 {[%emt 0:07:46]} Bf5 {[%emt 0:12:12]} 17. Bd3 {[%emt 0:07:54]} Qd7 {[%emt 0:22:30]} 18. Re3 {[%emt 0:23:46]} Bh6 {[%emt 0:10:38]} 19. exf5 {[%emt 0:00:47]} Bxe3 20. fxe3 {[%emt 0:00:06]} Nxd3 {[%emt 0:07:00]} 21. Qxd3 {[%emt 0:00:27]} Qxf5 {[%emt 0:00:07]} 22. Qxf5 {[%emt 0:02:13]} gxf5 {[%emt 0:00:07]} 23. Nc4 {[%emt 0:02:45]} Ne4 {[%emt 0:00:22]} 24. Nxe4 {[%emt 0:01:37]} Rxe4 {[%emt 0:00:02]} 25. b3 {[%emt 0:03:01]} f4 {[%emt 0:01:45]} 26. Nxd6 {[%emt 0:02:09]} 1-0

[Event "Centenario Panaderia Pulido 2023"]
[Site "San Mateo Gran Canaria"]
[Date "2023.12.07"]
[Round "6.10"]
[White "Moreno Diepa, Diego"]
[Black "Sanchez Gonzalez, Diego"]
[Result "1-0"]
[ECO "B90"]
[WhiteElo "2138"]
[BlackElo "1858"]
[Annotator "RC"]
[PlyCount "95"]
[EventDate "2023.12.04"]
[EventType "swiss"]
[EventCountry "ESP"]
[SourceTitle "playchess.com"]
[Source "ChessBase"]
[SourceQuality "1"]
[TimeControl "5400+30"]

1. e4 {[%emt 0:01:35]} c5 {[%emt 0:00:16]} 2. Nc3 {[%emt 0:00:04]} d6 {[%emt 0:00:27]} 3. d4 {[%emt 0:00:05]} cxd4 {[%emt 0:01:00]} 4. Qxd4 {[%emt 0:00:06]} e5 {[%emt 0:00:16]} 5. Qd1 {[%emt 0:01:04]} Nf6 {[%emt 0:01:30]} 6. Nf3 {[%emt 0:00:05]} a6 {[%emt 0:00:59]} 7. Bc4 {[%emt 0:00:26]} Be7 {[%emt 0:03:47]} 8. O-O {[%emt 0:00:34]} Nbd7 {[%emt 0:01:10]} 9. a3 {[%emt 0:04:35]} Nc5 {[%emt 0:08:38]} 10. Be3 {[%emt 0:05:52]} Qc7 {[%emt 0:20:14]} 11. h3 {[%emt 0:05:28]} h6 {[%emt 0:23:17]} 12. Nd5 {[%emt 0:05:55]} Nxd5 {[%emt 0:00:49]} 13. Bxd5 {[%emt 0:00:05]} O-O {[%emt 0:01:53]} 14. c4 {[%emt 0:05:31]} Kh8 {[%emt 0:01:26]} 15. b4 {[%emt 0:02:11]} Nd7 {[%emt 0:02:44]} 16. Qd2 {[%emt 0:00:55]} Kh7 {[%emt 0:02:29]} 17. Rac1 {[%emt 0:04:15]} a5 {[%emt 0:10:42]} 18. c5 {[%emt 0:04:35]} dxc5 {[%emt 0:04:00]} 19. bxc5 {[%emt 0:00:27]} Ra6 {[%emt 0:00:37]} 20. Qb2 {[%emt 0:04:57]} Rg6 {[%emt 0:01:30]} 21. Kh1 {[%emt 0:00:25]} Kg8 {[%emt 0:07:14]} 22. Rfd1 {[%emt 0:03:04]} Re8 {[%emt 0:01:28]} 23. Qb5 {[%emt 0:02:57]} Rd8 {[%emt 0:03:23]} 24. Bd2 {[%emt 0:14:03]} Bxc5 {[%emt 0:02:07]} 25. Bxa5 {[%emt 0:00:05]} b6 {[%emt 0:00:10]} 26. Bb4 {[%emt 0:00:04]} Rf6 {[%emt 0:00:37]} 27. a4 {[%emt 0:01:09]} Kh7 {[%emt 0:00:44]} 28. a5 {[%emt 0:00:17]} Qb8 {[%emt 0:00:32]} 29. Bxc5 {[%emt 0:01:19]} Nxc5 {[%emt 0:00:30]} 30. Rxc5 {[%emt 0:01:18]} Ba6 {[%emt 0:00:19]} 31. Qxa6 {[%emt 0:00:40]} bxc5 {[%emt 0:00:07]} 32. Qc4 {[%emt 0:00:14]} Qd6 {[%emt 0:00:38]} 33. Rb1 {[%emt 0:01:58]} Qc7 {[%emt 0:00:46]} 34. Ra1 {[%emt 0:02:56]} Rdd6 {[%emt 0:00:36]} 35. a6 {[%emt 0:00:46]} Qa7 {[%emt 0:00:17]} 36. Bb7 {[%emt 0:02:44]} Rb6 {[%emt 0:00:16]} 37. Qc3 {[%emt 0:00:26]} c4 {[%emt 0:01:00]} 38. Qxe5 {[%emt 0:02:01]} Rb3 {[%emt 0:00:28]} 39. Qd4 {[%emt 0:02:23]} Rfb6 {[%emt 0:00:23]} 40. Rc1 {[%emt 0:08:08]} Rb1 {[%emt 0:00:40]} 41. Rxb1 {[%emt 0:02:04]} Rxb1+ {[%emt 0:00:07]} 42. Kh2 {[%emt 0:00:04]} Qb8+ {[%emt 0:00:43]} 43. e5 {[%emt 0:00:26]} Rb4 {[%emt 0:00:38]} 44. Be4+ {[%emt 0:00:20]} f5 {[%emt 0:00:12]} 45. a7 {[%emt 0:00:15]} Qc7 {[%emt 0:00:16]} 46. a8=Q {[%emt 0:14:39]} fxe4 {[%emt 0:00:23]} 47. Qaxe4+ {[%emt 0:00:00]} Kh8 {[%emt 0:00:25]} 48. Qd6 {[%emt 0:00:00]} 1-0

[Event "Centenario Panaderia Pulido 2023"]
[Site "San Mateo Gran Canaria"]
[Date "2023.12.07"]
[Round "6.11"]
[White "Bergero, Simone"]
[Black "Quiceno Ramirez, Edwin Alejandro"]
[Result "1-0"]
[ECO "D56"]
[WhiteElo "2010"]
[BlackElo "1777"]
[Annotator "RC"]
[PlyCount "61"]
[EventDate "2023.12.04"]
[EventType "swiss"]
[EventCountry "ESP"]
[SourceTitle "playchess.com"]
[Source "ChessBase"]
[SourceQuality "1"]
[TimeControl "5400+30"]

1. d4 {[%emt 0:01:10]} d5 {[%emt 0:00:06]} 2. c4 {[%emt 0:00:05]} e6 {[%emt 0:00:04]} 3. Nc3 {[%emt 0:00:04]} Nf6 {[%emt 0:00:04]} 4. Bg5 {[%emt 0:00:09]} Be7 {[%emt 0:00:06]} 5. e3 {[%emt 0:00:08]} h6 {[%emt 0:01:28]} 6. Bh4 {[%emt 0:00:05]} O-O {[%emt 0:00:06]} 7. cxd5 {[%emt 0:00:05]} Nxd5 {[%emt 0:01:09]} 8. Bxe7 {[%emt 0:00:52]} Qxe7 {[%emt 0:00:07]} 9. Nf3 {[%emt 0:01:17]} Nd7 {[%emt 0:03:55]} 10. Be2 {[%emt 0:07:49]} Nxc3 {[%emt 0:04:22]} 11. bxc3 {[%emt 0:00:04]} c5 {[%emt 0:00:05]} 12. O-O {[%emt 0:06:55]} b6 {[%emt 0:12:39]} 13. a4 {[%emt 0:02:52]} Bb7 {[%emt 0:04:14]} 14. a5 {[%emt 0:01:31]} e5 {[%emt 0:02:53]} 15. a6 {[%emt 0:11:11]} Bxf3 {[%emt 0:07:23]} 16. Bxf3 {[%emt 0:00:07]} e4 {[%emt 0:00:03]} 17. Be2 {[%emt 0:00:23]} Rfd8 {[%emt 0:02:43]} 18. Bb5 {[%emt 0:04:09]} Ne5 {[%emt 0:06:56]} 19. Qc2 {[%emt 0:02:46]} cxd4 {[%emt 0:01:48]} 20. exd4 {[%emt 0:08:43]} Nf3+ {[%emt 0:02:35]} 21. Kh1 {[%emt 0:00:05]} Nxh2 {[%emt 0:00:20]} 22. Kxh2 {[%emt 0:00:25]} Qh4+ {[%emt 0:00:08]} 23. Kg1 {[%emt 0:00:06]} Rd5 {[%emt 0:00:04]} 24. g3 {[%emt 0:01:14]} Rg5 {[%emt 0:01:29]} 25. Bc6 {[%emt 0:03:59]} Rf8 {[%emt 0:19:41]} 26. Qxe4 {[%emt 0:01:59]} Qh3 {[%emt 0:02:07]} 27. Qg2 {[%emt 0:03:19]} Qg4 {[%emt 0:08:13]} 28. Rfe1 {[%emt 0:08:15]} Rg6 {[%emt 0:02:39]} 29. Re8 {[%emt 0:05:50]} Rxe8 {[%emt 0:00:36]} 30. Bxe8 {[%emt 0:00:04]} Qc8 {[%emt 0:00:12]} 31. Bxf7+ {[%emt 0:00:07]} 1-0

[Event "Centenario Panaderia Pulido 2023"]
[Site "San Mateo Gran Canaria"]
[Date "2023.12.07"]
[Round "6.12"]
[White "Ramos Santana, Marcelino"]
[Black "Almenares Garcia, Mario Adrian"]
[Result "1-0"]
[ECO "B03"]
[WhiteElo "1830"]
[BlackElo "2000"]
[Annotator "RC"]
[PlyCount "155"]
[EventDate "2023.12.04"]
[EventType "swiss"]
[EventCountry "ESP"]
[SourceTitle "playchess.com"]
[Source "ChessBase"]
[SourceQuality "1"]
[TimeControl "5400+30"]

1. e4 {[%emt 0:03:02]} Nf6 {[%emt 0:00:31]} 2. e5 {[%emt 0:00:25]} Nd5 {[%emt 0:00:11]} 3. c4 {[%emt 0:00:26]} Nb6 {[%emt 0:00:11]} 4. d4 {[%emt 0:00:07]} d6 {[%emt 0:00:07]} 5. exd6 {[%emt 0:00:33]} cxd6 {[%emt 0:00:06]} 6. Nc3 {[%emt 0:00:31]} g6 {[%emt 0:00:07]} 7. Be3 {[%emt 0:00:18]} Bg7 {[%emt 0:00:10]} 8. Rc1 {[%emt 0:00:05]} O-O {[%emt 0:00:10]} 9. b3 {[%emt 0:00:51]} Nc6 {[%emt 0:00:11]} 10. d5 {[%emt 0:02:20]} Ne5 {[%emt 0:00:39]} 11. Be2 {[%emt 0:00:28]} Ned7 {[%emt 0:01:06]} 12. Nf3 {[%emt 0:01:45]} Nf6 {[%emt 0:00:06]} 13. h3 {[%emt 0:00:20]} Bf5 {[%emt 0:00:51]} 14. Nd4 {[%emt 0:00:14]} Bc8 {[%emt 0:01:17]} 15. O-O {[%emt 0:00:16]} Nbd7 {[%emt 0:01:10]} 16. Bd3 {[%emt 0:03:55]} Nc5 {[%emt 0:01:18]} 17. Bb1 {[%emt 0:00:03]} Qa5 {[%emt 0:00:24]} 18. Bd2 {[%emt 0:06:10]} Qd8 {[%emt 0:01:20]} 19. Nf3 {[%emt 0:02:03]} e5 {[%emt 0:00:28]} 20. dxe6 {[%emt 0:00:34]} fxe6 {[%emt 0:00:19]} 21. Bg5 {[%emt 0:01:34]} e5 {[%emt 0:01:00]} 22. Nb5 {[%emt 0:05:05]} e4 {[%emt 0:00:45]} 23. Nfd4 {[%emt 0:02:26]} a6 {[%emt 0:00:15]} 24. Nc3 {[%emt 0:00:12]} h6 {[%emt 0:00:11]} 25. Bh4 {[%emt 0:00:48]} g5 {[%emt 0:00:59]} 26. Bg3 {[%emt 0:00:12]} g4 {[%emt 0:00:25]} 27. h4 {[%emt 0:11:52]} Nh5 {[%emt 0:00:53]} 28. Nd5 {[%emt 0:07:11]} Nxg3 {[%emt 0:02:21]} 29. fxg3 {[%emt 0:00:12]} Rxf1+ {[%emt 0:00:07]} 30. Kxf1 {[%emt 0:00:15]} Qf8+ {[%emt 0:02:58]} 31. Nf4 {[%emt 0:02:21]} Be5 {[%emt 0:01:16]} 32. Nde2 {[%emt 0:00:08]} Bf5 {[%emt 0:02:07]} 33. Kg1 {[%emt 0:00:41]} Qf7 {[%emt 0:02:53]} 34. Qd2 {[%emt 0:05:48]} Re8 {[%emt 0:00:45]} 35. Rf1 {[%emt 0:02:02]} b5 {[%emt 0:01:32]} 36. cxb5 {[%emt 0:02:43]} axb5 {[%emt 0:01:23]} 37. Nd5 {[%emt 0:00:41]} Qh7 {[%emt 0:02:23]} 38. Qb4 {[%emt 0:02:50]} Qd7 {[%emt 0:05:22]} 39. a4 {[%emt 0:04:37]} bxa4 {[%emt 0:01:00]} 40. bxa4 {[%emt 0:00:06]} Rf8 {[%emt 0:07:22]} 41. Nd4 {[%emt 0:03:42]} Bg6 {[%emt 0:04:19]} 42. Rxf8+ {[%emt 0:01:55]} Kxf8 {[%emt 0:00:13]} 43. a5 {[%emt 0:00:02]} Qa7 {[%emt 0:02:21]} 44. Nc6 {[%emt 0:01:08]} Qg7 {[%emt 0:02:02]} 45. Qb8+ {[%emt 0:04:36]} Be8 {[%emt 0:00:43]} 46. Nc7 {[%emt 0:00:23]} Qd7 {[%emt 0:01:41]} 47. Nxe5 {[%emt 0:02:44]} dxe5 {[%emt 0:00:22]} 48. a6 {[%emt 0:23:50]} Nxa6 {[%emt 0:05:53]} 49. Nxa6 {[%emt 0:00:49]} e3 {[%emt 0:00:34]} 50. Qb4+ {[%emt 0:01:46]} Kg7 {[%emt 0:01:08]} 51. Qe1 {[%emt 0:03:58]} Qd4 {[%emt 0:00:32]} 52. Bc2 {[%emt 0:03:13]} e2+ {[%emt 0:05:02]} 53. Kh2 {[%emt 0:15:34]} Bb5 {[%emt 0:00:32]} 54. Nb4 {[%emt 0:02:27]} e4 {[%emt 0:00:17]} 55. Na2 {[%emt 0:01:03]} e3 {[%emt 0:00:32]} 56. Qa5 {[%emt 0:03:06]} Bd7 {[%emt 0:09:13]} 57. Nc1 {[%emt 0:01:04]} Bb5 {[%emt 0:00:56]} 58. Qc7+ {[%emt 0:01:06]} Kf8 {[%emt 0:00:52]} 59. Bg6 {[%emt 0:00:56]} Qf6 {[%emt 0:01:32]} 60. Nxe2 {[%emt 0:04:20]} Bxe2 {[%emt 0:02:01]} 61. Qc5+ {[%emt 0:00:23]} Qe7 {[%emt 0:00:50]} 62. Qd4 {[%emt 0:01:11]} Bc4 {[%emt 0:01:18]} 63. Qh8+ {[%emt 0:02:19]} Bg8 {[%emt 0:00:24]} 64. Qxh6+ {[%emt 0:00:02]} Qg7 {[%emt 0:00:26]} 65. Qf4+ {[%emt 0:00:03]} Ke7 {[%emt 0:03:33]} 66. Qxe3+ {[%emt 0:00:15]} Kf6 {[%emt 0:03:36]} 67. Qg5+ {[%emt 0:00:23]} Ke6 {[%emt 0:00:26]} 68. Qxg4+ {[%emt 0:00:30]} Kd6 {[%emt 0:00:30]} 69. Qb4+ {[%emt 0:00:44]} Kc7 {[%emt 0:01:12]} 70. Qc5+ {[%emt 0:00:15]} Kb7 {[%emt 0:01:28]} 71. Be4+ {[%emt 0:00:21]} Ka6 {[%emt 0:00:14]} 72. Bd3+ {[%emt 0:00:37]} Kb7 {[%emt 0:00:33]} 73. Qb5+ {[%emt 0:00:09]} Kc7 {[%emt 0:02:08]} 74. Qa5+ {[%emt 0:00:09]} Kd6 {[%emt 0:00:20]} 75. Qb6+ {[%emt 0:00:42]} Kd5 {[%emt 0:00:31]} 76. Bc2 {[%emt 0:00:54]} Kc4 {[%emt 0:02:25]} 77. Bb3+ {[%emt 0:00:24]} Kd3 {[%emt 0:00:15]} 78. Qd8+ {[%emt 0:00:30]} 1-0